Cogmind - Beta 10.2 @@@ ROGUE MODE // 2021.08.22 @ 13:50:05 Player: Shadow Pussy wanter Result: Self-destructed Performance ------------- Evolutions (1) 500 Regions Visited (3) 600 Robots Destroyed (31) 155 Value Destroyed (708) 708 Prototype IDs (0) 0 Alien Tech Used (0) 0 Bonus (0) 0 TOTAL SCORE: 1963 Bonus ------- None Cogmind --------- Core Integrity 319/400 Matter 240/300 Energy 160/160 System Corruption 4% Temperature Cool (17) Movement Walking (150) Ox1 Location -9/Storage Parts ------- > --- POWER (1) -------- Light Nuclear Core > --- PROPULSION (2) --- Aluminum Leg Aluminum Leg > --- UTILITY (2) ------ Large Storage Unit Improved Terrain Scanner > --- WEAPON (4) ------- Grenade Launcher > --- INVENTORY (10) --- Ion Engine Compact Wheel Compact Wheel Medium Storage Unit Large Storage Unit Improved Terrain Scan Processor Peak State ------------ > --- POWER ------------ Light Nuclear Core > --- PROPULSION ------- Aluminum Leg Aluminum Leg > --- UTILITY ---------- Large Storage Unit Improved Terrain Scanner > --- WEAPON ----------- Beam Rifle Light Assault Rifle Grenade Launcher Heavy Mace > --- INVENTORY -------- Ion Engine Compact Wheel Compact Wheel Medium Storage Unit Large Storage Unit Improved Terrain Scan Processor [Rating: 15] Favorites ----------- Power Light Ion Engine Engine Light Ion Engine Power Core Light Nuclear Core Propulsion Aluminum Leg Leg Aluminum Leg Utility Small Storage Unit Device Improved Terrain Scanner Storage Small Storage Unit Weapon Light Assault Rifle Energy Gun Medium Laser Ballistic Gun Light Assault Rifle Ballistic Cannon Light Cannon Launcher Grenade Launcher Impact Weapon Heavy Mace Build | -11 -10 -9 -9 ------- Run | Scr Mat Mat Sto Slots Evolved 2 | . . 2 . Power . | . . . . Propulsion . | . . . . Utility . | . . . . Weapon 2 | . . 2 . Parts Attached 17 | 6 2 9 . Power 2 | 1 . 1 . Engine 1 | 1 . . . Core 1 | . . 1 . Reactor . | . . . . Propulsion 3 | 2 . 1 . Treads . | . . . . Leg 3 | 2 . 1 . Wheel . | . . . . Hover . | . . . . Flight . | . . . . Utility 3 | 1 . 2 . Device 1 | . . 1 . Storage 2 | 1 . 1 . Processor . | . . . . Hackware . | . . . . Protection . | . . . . Artifact . | . . . . Weapon 9 | 2 2 5 . Energy Gun 4 | 1 1 2 . Energy Cannon . | . . . . Ballistic Gun 2 | 1 1 . . Ballistic Cannon 1 | . . 1 . Launcher 1 | . . 1 . Special Weapon . | . . . . Impact Weapon 1 | . . 1 . Slashing Weapon . | . . . . Piercing Weapon . | . . . . Special Melee Weapon . | . . . . Unidentified Prototypes . | . . . . Parts Lost 9 | . 1 5 3 Power 1 | . . 1 . Propulsion 1 | . . 1 . Utility . | . . . . Weapon 7 | . 1 3 3 Highest Loss Streak 3 | . 1 3 3 Average Slot Usage (%) 91 | . 85 94 94 Engine 10 | . 14 8 . Core 1 | . . 1 11 Leg 24 | . 28 21 22 Device 6 | . . 10 11 Storage 12 | . 14 11 11 Energy Gun 12 | . 14 11 11 Ballistic Gun 12 | . 14 11 5 Ballistic Cannon 5 | . . 10 . Launcher 1 | . . 2 11 Impact Weapon 4 | . . 6 11 Naked Turns . | . . . . Heaviest Build 32 | 11 12 32 32 Greatest Support 20 | 20 20 20 20 Greatest Overweight (x) 3 | . . 3 1 Average Overweight (x) . | . . . 1 Largest Inventory Capacity 10 | 6 6 10 10 Average Capacity 6 | 5 6 7 10 Most Carried 7 | 6 6 7 6 Average Carried 5 | 2 5 5 6 Final Capacity 10 | 6 6 10 10 Final Carried 6 | 6 6 6 6 Class Distribution -------------------- 50% | Mutant 43% | Skirmisher 5% | Gunner Dominant Class ---------------- Mutant | -10/Materials Skirmisher | -9/Materials Mutant | -9/Storage Resources | -11 -10 -9 -9 ----------- Run | Scr Mat Mat Sto Matter Collected 538 | 262 65 211 . Remotely . | . . . . Salvage Created 1125 | 59 273 793 . Parts 61 | 2 13 46 . Haulers Intercepted . | . . . . Recyclers Shooed 1 | . . 1 . Parts Field Recycled . | . . . . Retrieved Matter . | . . . . Parts Self-Destructed . | . . . . Prevented . | . . . . Kills | -11 -10 -9 -9 ------- Run | Scr Mat Mat Sto Combat Hostiles Destroyed 21 | . 6 15 . Melee 1 | . . 1 . Guns 10 | . 6 4 . Cannons 4 | . . 4 . AOE 6 | . . 6 . Classes Destroyed 8 | 1 4 3 . Worker 3 | . 1 2 . Builder 1 | . 1 . . Recycler 4 | 1 . 3 . Watcher 2 | . . 2 . Swarmer 5 | . 2 3 . Grunt 13 | . 4 9 . Brawler 1 | . . 1 . Sentry 2 | . . 2 . Best Kill Streak 7 | 1 6 7 . Combat Bots Only 6 | . 4 6 . Max Kills in Single Turn 3 | 1 1 3 . Gunslinging . | . . . . Exploded 2 | . . 2 . Melee 1 | . . 1 . Uniques/NPCs Destroyed . | . . . . Combat | -11 -10 -9 -9 -------- Run | Scr Mat Mat Sto Damage Taken 1002 | 34 318 509 141 Core 161 | . 80 68 13 Absorbed by Shields . | . . . . Core Remaining (%) 84 | 100 68 . . Volleys Fired 53 | 3 18 30 2 Largest 4 | 2 2 4 3 Hottest 170 | 60 85 170 106 Shots Fired 134 | 6 36 87 5 Gun 100 | 6 36 55 3 Cannon 25 | . . 25 . Launcher 9 | . . 7 2 Special . | . . . . Kinetic 77 | 3 18 55 1 Thermal 30 | . 3 25 2 Explosive 9 | . . 7 2 Electromagnetic 18 | 3 15 . . Robot Hit Streak 11 | 2 8 11 8 Robot Miss Streak 3 | 2 3 3 . Penetration Max . | . . . . Secondary Targets 2 | . 2 . . Max Gunslinging Chain 1 | . 1 . . Shots Hit Robots 96 | 3 24 64 5 Core Hits 48 | 2 13 31 2 Critical Hits . | . . . . Critical Kills . | . . . . Critical Parts Destroyed . | . . . . Melee Attacks 10 | . . 9 1 Impact 10 | . . 9 1 Slashing . | . . . . Piercing . | . . . . Sneak Attacks 2 | . . 2 . Combat Hostiles . | . . . . Follow-up Attacks . | . . . . Damage Inflicted 1842 | 83 453 1202 104 Guns 759 | 37 349 335 38 Cannons 229 | . . 229 . Explosions 546 | 43 104 333 66 Melee 305 | . . 305 . Ramming 3 | 3 . . . Kinetic 587 | 12 180 386 9 Thermal 370 | 43 120 178 29 Explosive 399 | . . 333 66 Electromagnetic 178 | 25 153 . . Impact 305 | . . 305 . Slashing . | . . . . Piercing . | . . . . Highest Corruption 4 | . . 4 4 Average Corruption 4 | . . 4 4 Corruption Purged . | . . . . Effects 2 | . . 2 . Message Errors 1 | . . 1 . Targeting Errors 1 | . . 1 . Overload Shots . | . . . . Overflow Damage 212 | . 26 186 . Projectiles 31 | . . 31 . Explosions 52 | . 26 26 . Melee 129 | . . 129 . Knockbacks 3 | . . 3 . Impact 2 | . . 2 . Kinetic . | . . . . Secondary 1 | . . 1 . Self-Inflicted Damage 188 | 35 44 60 49 Shots 7 | 1 1 3 2 Rammed . | . . . . Targets Rammed 2 | 2 . . . Kicked 2 | 2 . . . Crushed . | . . . . Highest Temperature 382 | 12 114 382 90 Average Temperature 90 | 12 66 106 53 Received Heat Transfer 342 | . 114 174 54 Siege Activations . | . . . . Robots Corrupted . | . . . . Combat Hostiles . | . . . . Parts Fried 2 | . . 2 . Impact Corruptions 5 | . . 5 . Robots Melted . | . . . . Combat Hostiles . | . . . . Parts Melted 1 | 1 . . . Heat Transferred 829 | 50 187 518 74 Parts Sabotaged . | . . . . Parts Stolen . | . . . . Parts Stripped . | . . . . Power Chain Reactions 3 | 1 2 . . Missiles Intercepted . | . . . . Alert | -11 -10 -9 -9 ------- Run | Scr Mat Mat Sto Peak Influence 306 | 5 173 306 143 Initial 128 | . 3 72 128 Average 104 | 1 62 146 130 Maximum Alert Level 1 | . . 1 . Low Security (%) 93 | 100 100 88 100 Level 1 6 | . . 11 . Level 2 . | . . . . Level 3 . | . . . . Level 4 . | . . . . Level 5 . | . . . . High Security . | . . . . Max Security . | . . . . Squads Dispatched 2 | . . 2 . Investigation 2 | . . 2 . Extermination . | . . . . Reinforcement . | . . . . Assault . | . . . . Garrison . | . . . . Intercept . | . . . . Construction Impeded . | . . . . Haulers Reinforced . | . . . . Stealth | -11 -10 -9 -9 --------- Run | Scr Mat Mat Sto Distress Signals 1 | . . 1 . Communications Jammed . | . . . . Distress Signals . | . . . . Times Spotted 32 | . 9 22 1 Peak Tracking Total 6 | . 3 6 1 Tactical Retreats 2 | . 1 1 . Traps | -11 -10 -9 -9 ------- Run | Scr Mat Mat Sto Traps Triggered 1 | . . 1 . Indirectly . | . . . . Trap Hack Attempts . | . . . . Triggered . | . . . . Disarmed . | . . . . Reprogrammed . | . . . . Reused . | . . . . Traps Extracted . | . . . . Installed . | . . . . Triggered . | . . . . Machines | -11 -10 -9 -9 ---------- Run | Scr Mat Mat Sto Machines Disabled . | . . . . Max in Single Turn . | . . . . Machines Sabotaged . | . . . . Garrisons Compromised . | . . . . Overloaded Fab Kills . | . . . . Fab Network Shutdowns . | . . . . Hacking | -11 -10 -9 -9 --------- Run | Scr Mat Mat Sto Machines Accessed 5 | . 1 4 . Terminals 5 | . 1 4 . Fabricators . | . . . . Repair Stations . | . . . . Recycling Units . | . . . . Scanalyzers . | . . . . Garrison Access . | . . . . Total Hacks 11 | . 1 10 . Successful 7 | . 1 6 . Failed 4 | . . 4 . Catastrophic . | . . . . Database Lockouts . | . . . . Manual 4 | . . 4 . Terminals 11 | . 1 10 . Fabricators . | . . . . Repair Stations . | . . . . Recycling Units . | . . . . Scanalyzers . | . . . . Garrison Access . | . . . . Terminal Hacks 5 | . 1 4 . Branch Access Points 1 | . . 1 . Alert Level 2 | . . 2 . Locate Traps 1 | . 1 . . Hauler Manifests 1 | . . 1 . Fabricator Hacks . | . . . . Repair Station Hacks . | . . . . Recycling Unit Hacks . | . . . . Scanalyzer . | . . . . Garrison Access Hacks . | . . . . Unauthorized Hacks 2 | . . 2 . Terminals 2 | . . 2 . Botnet 2 | . . 2 . Fabricators . | . . . . Repair Stations . | . . . . Recycling Units . | . . . . Scanalyzers . | . . . . Garrison Access . | . . . . Data Cores Recovered . | . . . . Used . | . . . . Hacking Detections 4 | . . 4 . Full Trace Events 1 | . . 1 . Feedback Events . | . . . . Feedback Blocked . | . . . . Robot Schematics Acquired . | . . . . Robots Built . | . . . . Matter . | . . . . Time . | . . . . Total Robot Build Rating . | . . . . Part Schematics Acquired . | . . . . Parts Built . | . . . . Matter . | . . . . Time . | . . . . Total Part Build Rating . | . . . . Parts Repaired . | . . . . Time . | . . . . Parts Recycled . | . . . . Recycled Matter . | . . . . Retrieved Matter . | . . . . Retrieved Components . | . . . . Parts Scanalyzed . | . . . . Part Schematics Acquired . | . . . . Parts Damaged . | . . . . Bothacking | -11 -10 -9 -9 ------------ Run | Scr Mat Mat Sto Used RIF Installer . | . . . . Robots Hacked . | . . . . Non-combat . | . . . . Combat . | . . . . Robot Hacks Applied . | . . . . Relay Couplers Released . | . . . . Robots Rewired . | . . . . Allies Hacked . | . . . . Hacks Repelled . | . . . . Allies | -11 -10 -9 -9 -------- Run | Scr Mat Mat Sto Total Allies . | . . . . Largest Group . | . . . . Highest-Rated Group . | . . . . Highest-Rated Ally . | . . . . Total Orders . | . . . . Ally Attacks . | . . . . Total Damage . | . . . . Kills . | . . . . Allies Corrupted . | . . . . Allies Melted . | . . . . Intel | -11 -10 -9 -9 ------- Run | Scr Mat Mat Sto Robot Analysis Total . | . . . . Derelict Logs Recovered . | . . . . Drone Launches . | . . . . Drone Recoveries . | . . . . Exploration | -11 -10 -9 -9 ------------- Run | Scr Mat Mat Sto Turns Passed 1004 | 88 343 554 19 Spaces Moved 603 | 55 226 316 6 Core 5 | 5 . . . Treads . | . . . . Legs 598 | 50 226 316 6 Wheels . | . . . . Hover . | . . . . Flight . | . . . . Fastest Speed 50 | 50 120 120 150 Average Speed 125 | 113 120 130 150 Slowest Speed 210 | 120 120 210 150 Overloaded Moves . | . . . . Propulsion Burnouts . | . . . . Robots Hopped . | . . . . Cave-ins Triggered . | . . . . Exploration Rate (%) 21 | 3 38 38 5 Regions Visited 3 Branch Regions 1 Pre-discovered Areas . | . . . . Known Exits Taken 1 | . . 1 . Unknown Exits Taken 2 | 1 1 . . Scrap Searched . | . . . . Spaces Dug . | . . . . Terrain Destroyed 70 | 4 7 49 10 Melee . | . . . . Projectile . | . . . . AOE 70 | 4 7 49 10 Terrain Rammed . | . . . . Walls Destroyed . | . . . . Machines Disabled . | . . . . Actions | -11 -10 -9 -9 --------- Run | Scr Mat Mat Sto Total 721 | 71 264 377 9 Wait 20 | . 11 9 . Move 600 | 54 225 315 6 Hop . | . . . . Pick Up 14 | 6 4 4 . Fast Attach 10 | 6 . 4 . Attach 5 | . 1 4 . Detach . | . . . . Swap 2 | . 1 1 . Drop 5 | . 4 1 . Fire 53 | 3 18 30 2 Melee 10 | . . 9 1 Ram . | . . . . Kick 2 | 2 . . . Crush . | . . . . Escape Stasis . | . . . . Rewire . | . . . . Trap . | . . . . Miscellaneous . | . . . . Route ------- -11/Scrapyard -10/Materials (discovered 3 exits: *Mat / [*Min x2]) -9/Materials (discovered 3 exits: *Min / *Sto x2) -9/Storage History --------- Turn | Location | Event 4 | -11/Scrapyard | Discovered new exit (range 15) 89 | -11/Scrapyard | Entered Materials 121 | -10/Materials | Discovered new exit (range 6) 234 | -10/Materials | Discovered new exit (range 5) 307 | -10/Materials | Build established: Mutant 409 | -10/Materials | Discovered new exit (range 11) 432 | -10/Materials | Entered another Materials area 432 | -9/Materials | Evolved 2 slots: Weapon x2 718 | -9/Materials | Discovered new exit (range 8) 727 | -9/Materials | Identified exit to Mines 727 | -9/Materials | Identified exit to Storage 776 | -9/Materials | Build established: Skirmisher 911 | -9/Materials | Lost 3 parts (1p1n1w) 986 | -9/Materials | Entered Storage 1005 | -9/Storage | Self-destructed Last Messages --------------- 00954_ K-01 Serf collects debris. 00954_ U-05 Engineer lays Concrete. 00958_ K-01 Serf collects debris. 00958_ U-05 Engineer lays Concrete. 00962_ K-01 Serf collects debris. 00962_ U-05 Engineer lays Concrete. 00963_ System corrupted: Grenade Launcher targeting data glitched. 00963_ U-05 Engineer lays Concrete. 00965_ Y-45 Defender destroyed. 00966_ The unstable cave ceiling collapses. 00966_ K-01 Serf collects debris. 00966_ U-05 Engineer lays Concrete. 00980_ Acquired Beam Rifle. 00982_ Acquired 22 matter. 00983_ TQC> G22KDD087U2GAP, P6UWVMXNAZ8%HQTXK LOCATION=STORAGE GOAL=ESCAPE 00996_ Lgt. Assault Rifle destroyed. 01002_ Hvy. Mace destroyed. 01004_ Beam Rifle destroyed. Map ----- +----------------------------------------------------+ | ??????????????????????????????????????????? | | ??????????????????????????????????????????? | | ??????????????????????????????????????????? | | ??????????????????????????????????????????? | | ??????????????????????????????????????????? | | ??????????????????????????????????????????? | | ??????????????????????????????????????????? | | ??????????????????????????????????????????? | | ??????????????????????????????????????????? | | ??????????????????????????????????????????? | | ??????????????????????????????????????????? | | ??????????????????????????????????????????? | | ??????????????????????????????????????????? | | ??????????????????????????????????????????? | | ?????????????#????????????????????????????? | | ????????????????????????????????????????#?? | | ??????????????????????????????????????????? | | ??????????????????????????????????????????? | | ???????????????????????????????????#??????? | | ??????????????????????????????????????????? | | ?????????? ########+##+######???????????? | | ?????????# #???????????? | | ?????????# #???????????? | | ?????????# #???????????? | | ????????????##"Y"#T#### ##???????????? | | ??????????????????????# @ #????????????? | | ?????????????????????#T g #????????????? | | ?????????????????????##" "## #??#?????????? | | ??????????????????????? ???#????????????? | | ??????????????????????= ?????????##?????? | | ?????????????????????== ==????????#???????? | | ?????????????????????== ==?????#??????????? | | ????????????????????######????#???????????? | | ?????????????????????????#????????????????? | | ??????????????????????????????????????????? | | ??????????????????????????????????????????? | | ??????????????????????????????????????????? | | ??????????????????????????????????????????? | | | | | | | | | | | | | | | | | | | | | | | | | +----------------------------------------------------+ Best States ------------- Heat Dissipation 28 Energy Generation 14 Energy Capacity 160 Matter Stores 300 Matter Capacity 300 Sight Range 16 Terrain Scan Range 16 Terrain Scan Density 10 Evasion (%) 40 Item Schematics ----------------- None Robot Schematics ------------------ None Fabricated ------------ Nothing Alien Tech Used ----------------- None Achievements -------------- None Challenges ------------ None Game ------ Seed RemoteGyrokineticInitializer Manual? 0 Play Time 00:07:37 Cumulative 36.6 hours Start 2021.08.22 @ 13:42:41 End 2021.08.22 @ 13:50:05 Sessions 1 Manual Loads 0 Difficulty Rogue Special Mode None Game No. 59 Rogue 59 Adventurer 0 Explorer 0 Win Type - Total 0 Types 0/0/0/0/0/0/0/0/0 Lore% 37 Gallery% 43 Achievement% 30 Wizard Run 0 Options --------- ASCII 0 Keyboard 0 Movement Numpad Keybinds 0 Fullscreen 1 Font 18/SmallcapsGlow Map View 76x50 Tactical HUD 1 Map Filters NONE Filters NONE Steam 1 RUN: f0a33639-cb44-48aa-ba12-36e90331793f